Cogmind - Beta 9.2 *** ADVENTURER MODE // 2019.12.13 @ 17:48:44 Player: Michael Result: Self-destructed Performance ------------- Evolutions (9) 4500 Regions Visited (12) 2400 Robots Destroyed (167) 835 Value Destroyed (5034) 5034 Prototype IDs (3) 60 Alien Tech Used (0) 0 Bonus (149) 149 TOTAL SCORE: 12978 Bonus ------- High Alert Combat Kills 149 Cogmind --------- Core Integrity 89/1600 Matter 278/300 Energy 23/100 System Corruption 17% Temperature Cool (0) Movement Hovering (70) Location -1/Access Parts ------- > --- POWER (2) -------- (None) > --- PROPULSION (8) --- Improved Gyrokinetic Inverter > --- UTILITY (12) ----- Large Storage Unit Advanced Signal Interpreter Advanced Melee Analysis Suite Hacking Suite > --- WEAPON (3) ------- (None) > --- INVENTORY (10) --- Wheel Centrium Wheel Nuclear Pulse Array High-capacity Storage Unit Advanced Sensor Array Long-range Sensor Array Long-range Missile Launcher Peak State ------------ > --- POWER ------------ Micro Fission Core Light Particle Reactor > --- PROPULSION ------- Improved Antigrav System Improved Antigrav System Improved Gyrokinetic Inverter Improved Gyrokinetic Inverter Improved Gyrokinetic Inverter Improved Gyrokinetic Inverter Improved Gyrokinetic Inverter Improved Gyrokinetic Inverter > --- UTILITY ---------- Large Storage Unit Enhanced Optical Array Advanced Signal Interpreter Advanced Melee Analysis Suite Energy Filter Improved Maneuvering Thrusters Improved Utility Shielding Advanced Thermal Shield Advanced Thermal Shield Advanced Hacking Suite Improved System Shield System Restoration Module > --- WEAPON ----------- Long-range Proton Cannon Linear Accelerator > --- INVENTORY -------- Centrium Wheel Antigrav Array Nuclear Pulse Array Advanced Sensor Array Long-range Sensor Array Long-range Missile Launcher [Rating: 144] Favorites ----------- Power Enhanced Nuclear Core Engine Ion Engine Power Core Enhanced Nuclear Core Reactor Light Particle Reactor Propulsion Armored Wheel Leg Aluminum Leg Wheel Armored Wheel Hover Unit Improved Gyrokinetic Inverter Flight Unit Nuclear Pulse Array Utility Large Storage Unit Device Advanced Thermal Shield Storage Large Storage Unit Processor Advanced Signal Interpreter Hackware Improved Hacking Suite Protection Improved Propulsion Shielding Weapon Power Sword Energy Cannon Light EM Pulse Cannon Ballistic Gun Heavy Assault Rifle Ballistic Cannon Advanced Assault Cannon Launcher Heavy Rocket Launcher Slashing Weapon Power Sword Build | -11 -10 -9 -8 -7 -6 -6 -6 -5 -4 -3 -2 -1 ------- Run | Scr Mat Mat Mat Fac Fac Was Fac Fac Fac Res Res Acc Slots Evolved 18 | . . 2 2 2 2 . . 2 2 2 2 2 Power 1 | . . . . . . . . . 1 . . . Propulsion 6 | . . 1 . . . . . . 1 2 1 1 Utility 10 | . . 1 1 2 2 . . 2 . . 1 1 Weapon 1 | . . . 1 . . . . . . . . . Parts Attached 280 | 6 15 19 11 35 42 1 52 50 6 9 7 27 Power 19 | 1 . 1 2 2 3 . 1 4 2 . . 3 Engine 3 | 1 . 1 1 . . . . . . . . . Core 14 | . . . 1 2 3 . 1 4 2 . . 1 Reactor 2 | . . . . . . . . . . . . 2 Propulsion 42 | 2 3 7 . 4 1 . 3 8 1 1 . 12 Treads . | . . . . . . . . . . . . . Leg 9 | 2 3 4 . . . . . . . . . . Wheel 18 | . . 3 . 4 1 . 3 6 . . . 1 Hover 12 | . . . . . . . . 1 . . . 11 Flight 3 | . . . . . . . . 1 1 1 . . Utility 103 | 1 2 3 2 5 14 . 30 26 2 5 5 8 Device 47 | . . . . 1 8 . 14 11 1 2 4 6 Storage 11 | 1 1 1 1 . . . 3 3 . . 1 . Processor 9 | . 1 1 1 1 1 . 1 2 . 1 . . Hackware 8 | . . . . 1 1 . . 4 . . . 2 Protection 28 | . . 1 . 2 4 . 12 6 1 2 . . Artifact . | . . . . . . . . . . . . . Weapon 116 | 2 10 8 7 24 24 1 18 12 1 3 2 4 Energy Gun . | . . . . . . . . . . . . . Energy Cannon 15 | . . . . 7 5 . . 1 . . . 2 Ballistic Gun 23 | 2 3 1 4 4 8 . 1 . . . . . Ballistic Cannon 35 | . 3 3 2 9 6 . 8 2 . 1 . 1 Launcher 30 | . 4 4 1 3 5 1 6 3 . 1 1 1 Special Weapon . | . . . . . . . . . . . . . Impact Weapon . | . . . . . . . . . . . . . Slashing Weapon 13 | . . . . 1 . . 3 6 1 1 1 . Piercing Weapon . | . . . . . . . . . . . . . Special Melee Weapon . | . . . . . . . . . . . . . Unidentified Prototypes 1 | . . . . 1 . . . . . . . . Parts Lost 66 | . . 2 . 1 6 . 6 20 . 1 2 28 Power 7 | . . . . . 1 . . 1 . . 1 4 Propulsion 17 | . . . . . . . . 6 . . 1 10 Utility 28 | . . 1 . . 2 . 3 10 . 1 . 11 Weapon 14 | . . 1 . 1 3 . 3 3 . . . 3 Highest Loss Streak 17 | . . 1 . 1 2 . 2 17 . 1 2 13 Average Slot Usage (%) 87 | . 100 94 98 91 92 93 92 76 75 71 71 75 Engine 1 | . 14 11 5 . . . . . . . . . Core 5 | . . . 3 7 6 6 5 4 8 9 7 3 Leg 2 | . 28 20 . . . . . . . . . . Wheel 9 | . . 12 27 18 13 13 13 8 . . . . Hover 2 | . . . . . . . . . . . . 22 Flight 1 | . . . . . . . . . 10 9 12 1 Device 7 | . . . . 2 5 6 6 6 20 15 11 12 Storage 12 | . 14 11 16 15 13 13 19 12 . . 4 4 Processor 14 | . 14 15 9 7 19 20 17 15 10 14 13 11 Hackware 5 | . . . . 3 3 6 6 9 10 9 8 8 Protection 5 | . . 1 9 11 9 6 2 3 9 7 8 5 Energy Cannon 1 | . . . . 3 1 6 1 . . . . . Ballistic Gun 5 | . 14 10 9 3 10 6 6 . . . . . Ballistic Cannon 5 | . 13 9 16 14 5 2 2 3 . 1 . 1 Launcher 1 | . . 1 . . . 3 4 3 . . . . Slashing Weapon 2 | . . . . . . . 3 3 4 2 3 2 Naked Turns . | . . . . . . . . . . . . . Heaviest Build 135 | 11 18 32 56 69 66 57 87 135 32 39 47 71 Greatest Support 85 | 20 20 30 30 40 40 40 40 40 40 47 47 85 Greatest Overweight (x) 3 | . . 1 1 2 1 1 2 3 . . 1 2 Average Overweight (x) . | . . . 1 1 1 1 1 1 . . . . Largest Inventory Capacity 28 | 6 8 10 16 16 16 16 22 28 4 4 10 10 Average Capacity 14 | 5 6 8 15 16 16 16 21 20 4 4 10 10 Most Carried 24 | 6 8 10 16 16 16 15 22 24 4 4 4 10 Average Carried 13 | 3 6 8 13 15 14 15 21 15 3 3 3 7 Final Capacity 22 | 6 8 10 16 16 16 16 22 4 4 4 10 10 Final Carried 19 | 6 8 9 16 16 15 15 19 3 4 4 4 8 Class Distribution -------------------- 25% | Mutant 25% | Hauler-Mutant 16% | Hacker-Scout 6% | Hacker-Assassin 6% | Tank 5% | Gunner 4% | Hacker-Mutant 3% | Hauler-Assassin Dominant Class ---------------- Mutant | -10/Materials Mutant | -9/Materials Scavenger-Gunner | -8/Materials Tank | -7/Factory Mutant | -6/Factory Mutant | -6/Waste Hauler-Mutant | -6/Factory Hauler-Assassin | -5/Factory Hacker-Scout | -4/Factory Hacker-Scout | -3/Research Hacker-Scout | -2/Research Hacker-Assassin | -1/Access Resources | -11 -10 -9 -8 -7 -6 -6 -6 -5 -4 -3 -2 -1 ----------- Run | Scr Mat Mat Mat Fac Fac Was Fac Fac Fac Res Res Acc Matter Collected 6585 | 224 355 766 504 703 1276 . 1256 794 173 108 52 374 Remotely . | . . . . . . . . . . . . . Salvage Created 5602 | . 309 517 504 485 1303 . 1281 464 277 74 60 328 Parts 325 | . 26 36 24 29 78 . 76 23 7 7 3 16 Haulers Intercepted 4 | . . 2 . 1 . . 1 . . . . . Recyclers Shooed 8 | . 1 . 2 . 4 . . 1 . . . . Parts Field Recycled . | . . . . . . . . . . . . . Retrieved Matter . | . . . . . . . . . . . . . Parts Self-Destructed . | . . . . . . . . . . . . . Prevented . | . . . . . . . . . . . . . Kills | -11 -10 -9 -8 -7 -6 -6 -6 -5 -4 -3 -2 -1 ------- Run | Scr Mat Mat Mat Fac Fac Was Fac Fac Fac Res Res Acc Combat Hostiles Destroyed 101 | . 12 17 5 14 26 . 13 6 . 1 1 6 Melee 8 | . . . . 1 . . 4 . . 1 1 1 Guns 26 | . 3 4 2 4 12 . 1 . . . . . Cannons 25 | . 3 3 3 3 7 . 2 3 . . . 1 AOE 42 | . 6 10 . 6 7 . 6 3 . . . 4 Classes Destroyed 13 | . 5 4 . 1 2 . 1 . . . . . Worker 15 | . 1 2 . 2 5 . 4 . . . . 1 Builder 15 | . 1 1 . 1 3 . 6 3 . . . . Tunneler 3 | . . . . . 1 . 2 . . . . . Hauler 4 | . . 2 . 1 . . 1 . . . . . Recycler 18 | . . 1 4 . 4 . 4 2 2 . . 1 Operator 1 | . . . . . . . 1 . . . . . Watcher 10 | . 2 . 1 1 1 . 2 2 . 1 . . Swarmer 34 | . 6 8 . 4 7 . 4 . . 1 . 4 Grunt 36 | . 6 5 . 9 10 . 2 4 . . . . Duelist 1 | . . 1 . . . . . . . . . . Sentry 14 | . . 3 5 . 3 . 3 . . . . . Hunter 4 | . . . . . 2 . . 2 . . . . Programmer 12 | . . . . 1 4 . 4 . . . 1 2 Best Kill Streak 11 | . 5 8 2 4 11 . 6 4 2 1 1 4 Combat Bots Only 7 | . 4 7 2 4 6 . 4 3 . 1 1 4 Max Kills in Single Turn 5 | . 5 3 1 3 3 . 3 2 1 1 1 2 Gunslinging . | . . . . . . . . . . . . . Exploded 3 | . 3 3 . 2 2 . 3 1 . . . 2 Melee 1 | . . . . 1 . . 1 . . 1 1 1 Uniques/NPCs Destroyed . | . . . . . . . . . . . . . Combat | -11 -10 -9 -8 -7 -6 -6 -6 -5 -4 -3 -2 -1 -------- Run | Scr Mat Mat Mat Fac Fac Was Fac Fac Fac Res Res Acc Damage Taken 12618 | . 380 585 256 491 1514 4 1160 3533 19 659 455 3562 Core 3259 | . 63 140 36 57 192 2 157 842 19 149 91 1511 Absorbed by Shields 40 | . . . . . . . . 40 . . . . Core Remaining (%) 77 | 100 74 65 93 91 . . 58 15 98 88 93 . Volleys Fired 281 | . 21 37 29 30 72 8 32 22 . 8 5 17 Largest 3 | . 2 2 3 3 3 1 3 3 . 1 1 1 Hottest 140 | . 70 60 106 130 129 36 140 131 . 66 43 66 Shots Fired 550 | . 41 74 77 73 163 8 52 32 . 8 5 17 Gun 203 | . 17 34 25 22 85 . 20 . . . . . Cannon 262 | . 21 29 47 45 61 . 18 22 . 5 . 14 Launcher 85 | . 3 11 5 6 17 8 14 10 . 3 5 3 Special . | . . . . . . . . . . . . . Kinetic 435 | . 38 63 72 59 125 . 37 22 . 5 . 14 Thermal . | . . . . . . . . . . . . . Explosive 85 | . 3 11 5 6 17 8 14 10 . 3 5 3 Electromagnetic 30 | . . . . 8 21 . 1 . . . . . Robot Hit Streak 33 | . 8 15 21 10 33 . 18 13 . . . 14 Robot Miss Streak 2 | . 2 2 2 1 2 . 2 1 . . . 1 Penetration Max . | . . . . . . . . . . . . . Secondary Targets 1 | . . . . . 1 . . . . . . . Max Gunslinging Chain 1 | . . . . . 1 . . . . . . . Shots Hit Robots 437 | . 30 59 48 49 112 . 74 33 5 4 5 18 Core Hits 295 | . 26 33 15 31 97 2 47 25 2 3 2 12 Critical Hits 7 | . 1 2 . 1 1 . 2 . . . . . Critical Kills 2 | . . 1 . . . . 1 . . . . . Critical Parts Destroyed 5 | . 1 1 . 1 1 . 1 . . . . . Melee Attacks 127 | . . . . 1 . . 53 15 18 14 11 15 Impact . | . . . . . . . . . . . . . Slashing 127 | . . . . 1 . . 53 15 18 14 11 15 Piercing . | . . . . . . . . . . . . . Sneak Attacks 22 | . . . . . . . 15 5 2 . . . Combat Hostiles . | . . . . . . . . . . . . . Follow-up Attacks . | . . . . . . . . . . . . . Damage Inflicted 18190 | . 738 1821 826 1642 4198 258 4263 2228 415 180 205 1416 Guns 2802 | . 139 390 271 249 1345 . 408 . . . . . Cannons 3604 | . 211 399 555 428 667 . 332 623 . . . 389 Explosions 7292 | . 388 1032 . 910 2186 258 932 907 . . . 679 Melee 4467 | . . . . 55 . . 2591 687 415 180 205 334 Ramming 25 | . . . . . . . . 11 . . . 14 Kinetic 5962 | . 350 789 826 596 1671 . 718 623 . . . 389 Thermal 500 | . . . . 247 104 . 82 67 . . . . Explosive 6792 | . 388 1032 . 663 2082 258 850 840 . . . 679 Electromagnetic 444 | . . . . 81 341 . 22 . . . . . Impact . | . . . . . . . . . . . . . Slashing 4467 | . . . . 55 . . 2591 687 415 180 205 334 Piercing . | . . . . . . . . . . . . . Highest Corruption 17 | . . . . 1 1 . 4 . . 2 1 17 Average Corruption 2 | . . . . 1 1 . 4 . . 2 1 5 Corruption Purged 3 | . . . . . 2 . . . . . . 1 Effects 13 | . . . . 3 . . . . . 1 . 9 Message Errors 2 | . . . . 1 . . . . . . . 1 Heat Flow Errors 1 | . . . . . . . . . . 1 . . Energy Discharges 5 | . . . . 1 . . . . . . . 4 Data Loss (minor) 1 | . . . . . . . . . . . . 1 Alerts 1 | . . . . . . . . . . . . 1 Misdirections 2 | . . . . . . . . . . . . 2 Weapon Failures 1 | . . . . 1 . . . . . . . . Overload Shots . | . . . . . . . . . . . . . Overflow Damage 844 | . . 20 . 102 25 . 331 155 107 29 . 75 Projectiles 77 | . . 11 . . . . . 52 . . . 14 Explosions 201 | . . 9 . 102 25 . . . . 4 . 61 Melee 566 | . . . . . . . 331 103 107 25 . . Knockbacks 26 | . 6 2 4 3 1 . 1 7 . . . 2 Impact 1 | . . . . . . . . 1 . . . . Kinetic 24 | . 6 2 4 3 1 . 1 5 . . . 2 Secondary 1 | . . . . . . . . 1 . . . . Self-Inflicted Damage 406 | . 48 145 . . 63 5 110 5 . 24 . 6 Shots 13 | . 2 4 . . 2 1 3 . . 1 . . Rammed 4 | . . . . . . . . 2 . . . 2 Targets Rammed 4 | . . . . . . . . 2 . . . 2 Kicked . | . . . . . . . . . . . . . Crushed . | . . . . . . . . . . . . . Highest Temperature 480 | . 42 9 238 338 51 . 78 58 . 121 . 480 Average Temperature 122 | . 13 3 67 136 18 . 18 36 . 32 . 245 Received Heat Transfer 2480 | . 138 198 99 216 423 . 309 833 12 18 63 171 Effects 12 | . . . . 3 . . . . . . . 9 Shutdowns 2 | . . . . . . . . . . . . 2 Energy Bleed 2 | . . . . . . . . . . . . 2 Interference 5 | . . . . 3 . . . . . . . 2 Matter Decay 1 | . . . . . . . . . . . . 1 Damage (minor) 2 | . . . . . . . . . . . . 2 Siege Activations . | . . . . . . . . . . . . . Robots Corrupted . | . . . . . . . . . . . . . Combat Hostiles . | . . . . . . . . . . . . . Parts Fried 1 | . . . . . 1 . . . . . . . Impact Corruptions . | . . . . . . . . . . . . . Robots Melted . | . . . . . . . . . . . . . Combat Hostiles . | . . . . . . . . . . . . . Parts Melted . | . . . . . . . . . . . . . Heat Transferred 300 | . . . . 150 50 . 50 50 . . . . Parts Sabotaged . | . . . . . . . . . . . . . Parts Stolen . | . . . . . . . . . . . . . Parts Stripped . | . . . . . . . . . . . . . Power Chain Reactions 2 | . . . . . 2 . . . . . . . Missiles Intercepted . | . . . . . . . . . . . . . Alert | -11 -10 -9 -8 -7 -6 -6 -6 -5 -4 -3 -2 -1 ------- Run | Scr Mat Mat Mat Fac Fac Was Fac Fac Fac Res Res Acc Peak Influence 801 | . 172 494 404 345 516 189 198 801 182 262 265 210 Average Influence 169 | . 74 292 238 156 362 159 56 365 102 151 166 84 Maximum Alert Level 3 | . . 2 2 1 2 . . 3 . 1 1 1 Low Security (%) 68 | 100 100 14 45 60 13 100 100 24 100 65 66 93 Level 1 20 | . . 57 53 39 33 . . 38 . 34 33 6 Level 2 10 | . . 27 . . 52 . . 36 . . . . Level 3 . | . . . . . . . . . . . . . Level 4 . | . . . . . . . . . . . . . Level 5 . | . . . . . . . . . . . . . High Security . | . . . . . . . . . . . . . Max Security . | . . . . . . . . . . . . . Squads Dispatched 27 | . . . 1 3 6 . 8 1 1 4 . 3 Investigation 1 | . . . . . . . 1 . . . . . Extermination 13 | . . . . 1 2 . 4 1 1 1 . 3 Reinforcement 11 | . . . . 2 3 . 3 . . 3 . . Assault 1 | . . . . . 1 . . . . . . . Garrison 1 | . . . 1 . . . . . . . . . Intercept . | . . . . . . . . . . . . . Construction Impeded 4 | . . . . 1 1 . 2 . . . . . Haulers Reinforced 1 | . . . . 1 . . . . . . . . Stealth | -11 -10 -9 -8 -7 -6 -6 -6 -5 -4 -3 -2 -1 --------- Run | Scr Mat Mat Mat Fac Fac Was Fac Fac Fac Res Res Acc Distress Signals 11 | . 1 . 1 . . . . 3 . 4 2 . Communications Jammed . | . . . . . . . . . . . . . Distress Signals . | . . . . . . . . . . . . . Times Spotted 247 | . 16 21 11 17 31 6 31 33 3 34 9 35 Peak Tracking Total 16 | . 5 7 3 4 6 6 4 13 3 14 6 16 Tactical Retreats 39 | . 1 3 1 . . . 5 9 1 10 2 7 Traps | -11 -10 -9 -8 -7 -6 -6 -6 -5 -4 -3 -2 -1 ------- Run | Scr Mat Mat Mat Fac Fac Was Fac Fac Fac Res Res Acc Traps Triggered 9 | . . . . 1 1 . 5 2 . . . . Indirectly . | . . . . . . . . . . . . . Trap Hack Attempts . | . . . . . . . . . . . . . Triggered . | . . . . . . . . . . . . . Disarmed . | . . . . . . . . . . . . . Reprogrammed . | . . . . . . . . . . . . . Reused . | . . . . . . . . . . . . . Traps Extracted . | . . . . . . . . . . . . . Installed . | . . . . . . . . . . . . . Triggered . | . . . . . . . . . . . . . Machines | -11 -10 -9 -8 -7 -6 -6 -6 -5 -4 -3 -2 -1 ---------- Run | Scr Mat Mat Mat Fac Fac Was Fac Fac Fac Res Res Acc Machines Disabled 24 | . . . . 11 2 . 5 6 . . . . Max in Single Turn 8 | . . . . 8 1 . 2 2 . . . . Garrison Access 5 | . . . 1 2 . . 1 1 . . . . Machines Sabotaged . | . . . . . . . . . . . . . Garrisons Compromised . | . . . . . . . . . . . . . Overloaded Fab Kills . | . . . . . . . . . . . . . Fab Network Shutdowns 1 | . . . . . . . . 1 . . . . Hacking | -11 -10 -9 -8 -7 -6 -6 -6 -5 -4 -3 -2 -1 --------- Run | Scr Mat Mat Mat Fac Fac Was Fac Fac Fac Res Res Acc Machines Accessed 79 | . 7 5 5 11 8 . 14 6 4 6 7 6 Terminals 38 | . 6 3 2 4 4 . 7 . 2 3 3 4 Fabricators 8 | . . . . 2 . . 1 2 1 1 . 1 Repair Stations 6 | . . 1 . 2 1 . 1 . 1 . . . Recycling Units 9 | . 1 . 1 . . . 3 3 . . 1 . Scanalyzers 12 | . . 1 1 1 2 . 1 . . 2 3 1 Garrison Access 6 | . . . 1 2 1 . 1 1 . . . . Total Hacks 220 | . 22 23 13 25 21 . 40 19 17 16 16 8 Successful 141 | . 5 18 11 20 11 . 33 12 13 9 6 3 Failed 79 | . 17 5 2 5 10 . 7 7 4 7 10 5 Catastrophic 8 | . 3 1 . . . . . 1 . 1 . 2 Database Lockouts . | . . . . . . . . . . . . . Manual 71 | . 17 6 8 6 8 . 12 1 7 3 2 1 Terminals 112 | . 19 8 8 8 13 . 24 . 8 11 9 4 Fabricators 31 | . . . . 5 . . 2 13 7 2 . 2 Repair Stations 12 | . . 2 . 4 2 . 2 . 2 . . . Recycling Units 15 | . 3 . 1 . . . 5 4 . . 2 . Scanalyzers 41 | . . 13 2 6 4 . 6 . . 3 5 2 Garrison Access 9 | . . . 2 2 2 . 1 2 . . . . Terminal Hacks 40 | . 2 2 5 2 3 . 16 . 4 4 2 . Part Schematic 3 | . . . 1 . . . 2 . . . . . Level Access Points 4 | . . 1 1 . . . 1 . 1 . . . Branch Access Points 2 | . . . . . 1 . . . . 1 . . Emergency Access Points 3 | . . . . . . . 2 . . 1 . . Terminal Index 4 | . . . 1 1 . . 1 . 1 . . . Repair Station Index 1 | . . . . . . . . . 1 . . . Unreport Threat 4 | . 1 . . . . . 3 . . . . . Locate Traps 12 | . 1 1 1 1 1 . 3 . 1 1 2 . Extermination Status 1 | . . . . . . . 1 . . . . . Zone Layout 6 | . . . 1 . 1 . 3 . . 1 . . Fabricator Hacks 24 | . . . . 5 . . 2 8 5 2 . 2 Load Schematic 10 | . . . . 2 . . 1 3 2 1 . 1 Build 14 | . . . . 3 . . 1 5 3 1 . 1 Repair Station Hacks 10 | . . 1 . 3 2 . 2 . 2 . . . Scan Component 6 | . . 1 . 2 1 . 1 . 1 . . . Repair 4 | . . . . 1 1 . 1 . 1 . . . Recycling Unit Hacks 9 | . 1 . 1 . . . 4 2 . . 1 . Recycle Component 1 | . . . . . . . 1 . . . . . Retrieve Components 8 | . 1 . 1 . . . 3 2 . . 1 . Scanalyzer 35 | . . 13 2 6 3 . 6 . . 2 2 1 Insert Component 18 | . . 6 1 2 2 . 3 . . 2 1 1 Analyze 17 | . . 7 1 4 1 . 3 . . . 1 . Garrison Access Hacks 5 | . . . 1 2 . . 1 1 . . . . Seal Access 5 | . . . 1 2 . . 1 1 . . . . Unauthorized Hacks 44 | . 5 5 4 6 8 . 4 2 6 2 2 . Terminals 17 | . 2 2 2 2 3 . 2 . 2 1 1 . Botnet 17 | . 2 2 2 2 3 . 2 . 2 1 1 . Fabricators 1 | . . . . . . . . 1 . . . . Prioritize 1 | . . . . . . . . 1 . . . . Repair Stations . | . . . . . . . . . . . . . Recycling Units . | . . . . . . . . . . . . . Scanalyzers . | . . . . . . . . . . . . . Garrison Access . | . . . . . . . . . . . . . Data Cores Recovered . | . . . . . . . . . . . . . Used . | . . . . . . . . . . . . . Hacking Detections 69 | . 7 4 4 8 8 . 13 4 3 6 6 6 Full Trace Events . | . . . . . . . . . . . . . Feedback Events . | . . . . . . . . . . . . . Feedback Blocked . | . . . . . . . . . . . . . Robot Schematics Acquired . | . . . . . . . . . . . . . Robots Built . | . . . . . . . . . . . . . Matter . | . . . . . . . . . . . . . Time . | . . . . . . . . . . . . . Total Robot Build Rating . | . . . . . . . . . . . . . Part Schematics Acquired 16 | . . 6 2 2 1 . 4 . . . 1 . Parts Built 15 | . . . . 4 . . 1 3 4 1 . 2 Matter 2184 | . . . . 248 . . 252 676 650 102 . 256 Time 769 | . . . . 62 . . 134 173 341 17 . 42 Total Part Build Rating 59 | . . . . 8 . . 4 16 14 1 . 16 Parts Repaired 4 | . . . . 1 1 . 1 . 1 . . . Time 136 | . . . . 32 32 . 22 . 50 . . . Parts Recycled 1 | . . . . . . . 1 . . . . . Recycled Matter . | . . . . . . . . . . . . . Retrieved Matter . | . . . . . . . . . . . . . Retrieved Components 6 | . . . 1 . . . 3 2 . . . . Parts Scanalyzed 15 | . . 6 1 2 1 . 3 . . . 1 1 Part Schematics Acquired 13 | . . 6 1 2 1 . 2 . . . 1 . Parts Damaged 1 | . . . . 1 . . . . . . . . Bothacking | -11 -10 -9 -8 -7 -6 -6 -6 -5 -4 -3 -2 -1 ------------ Run | Scr Mat Mat Mat Fac Fac Was Fac Fac Fac Res Res Acc Used RIF Installer . | . . . . . . . . . . . . . Robots Hacked . | . . . . . . . . . . . . . Non-combat . | . . . . . . . . . . . . . Combat . | . . . . . . . . . . . . . Robot Hacks Applied . | . . . . . . . . . . . . . Relay Couplers Released 2 | . . . . 2 . . . . . . . . Machine Destruction 2 | . . . . 2 . . . . . . . . Robots Rewired . | . . . . . . . . . . . . . Allies Hacked . | . . . . . . . . . . . . . Hacks Repelled . | . . . . . . . . . . . . . Allies | -11 -10 -9 -8 -7 -6 -6 -6 -5 -4 -3 -2 -1 -------- Run | Scr Mat Mat Mat Fac Fac Was Fac Fac Fac Res Res Acc Total Allies . | . . . . . . . . . . . . . Largest Group . | . . . . . . . . . . . . . Highest-Rated Group . | . . . . . . . . . . . . . Highest-Rated Ally . | . . . . . . . . . . . . . Total Orders . | . . . . . . . . . . . . . Ally Attacks . | . . . . . . . . . . . . . Total Damage . | . . . . . . . . . . . . . Kills . | . . . . . . . . . . . . . Allies Corrupted . | . . . . . . . . . . . . . Allies Melted . | . . . . . . . . . . . . . Intel | -11 -10 -9 -8 -7 -6 -6 -6 -5 -4 -3 -2 -1 ------- Run | Scr Mat Mat Mat Fac Fac Was Fac Fac Fac Res Res Acc Robot Analysis Total . | . . . . . . . . . . . . . Derelict Logs Recovered . | . . . . . . . . . . . . . Drone Launches . | . . . . . . . . . . . . . Drone Recoveries . | . . . . . . . . . . . . . Exploration | -11 -10 -9 -8 -7 -6 -6 -6 -5 -4 -3 -2 -1 ------------- Run | Scr Mat Mat Mat Fac Fac Was Fac Fac Fac Res Res Acc Turns Passed 10192 | 63 579 453 412 1283 1095 156 2556 1118 696 489 227 1065 Spaces Moved 8966 | 43 390 244 295 914 723 130 2010 1021 777 989 407 1023 Core 93 | 4 . . . . . . . 89 . . . . Treads . | . . . . . . . . . . . . . Legs 550 | 39 390 121 . . . . . . . . . . Wheels 4894 | . . 123 295 914 723 130 2010 690 . . . 9 Hover 815 | . . . . . . . . . . . . 815 Flight 2614 | . . . . . . . . 242 777 989 407 199 Fastest Speed 34 | 50 120 80 90 96 105 105 105 40 37 34 34 38 Average Speed 84 | 113 120 102 90 102 105 105 105 90 37 36 36 82 Slowest Speed 130 | 120 120 120 90 105 105 105 115 130 37 37 117 130 Overloaded Moves . | . . . . . . . . . . . . . Propulsion Burnouts . | . . . . . . . . . . . . . Robots Hopped 28 | . . . . . . . . . . 19 9 . Cave-ins Triggered . | . . . . . . . . . . . . . Exploration Rate (%) 33 | 5 67 24 35 24 25 78 33 35 12 42 21 29 Regions Visited 12 Branch Regions . Pre-discovered Areas . | . . . . . . . . . . . . . Known Exits Taken 8 | . . 1 1 1 . . 1 1 1 1 1 . Unknown Exits Taken 2 | 1 1 . . . . . . . . . . . Scrap Searched . | . . . . . . . . . . . . . Spaces Dug 283 | . . . 60 2 7 45 15 9 13 50 73 9 Terrain Destroyed 879 | . 28 74 69 63 81 74 188 94 13 62 86 47 Melee 55 | . . . . . . . 13 9 13 8 6 6 Projectile 35 | . . 1 11 3 8 . 3 . . 5 . 4 AOE 789 | . 28 73 58 60 73 74 172 85 . 49 80 37 Actions | -11 -10 -9 -8 -7 -6 -6 -6 -5 -4 -3 -2 -1 --------- Run | Scr Mat Mat Mat Fac Fac Was Fac Fac Fac Res Res Acc Total 10882 | 54 465 370 381 1199 922 141 2312 1159 1156 1068 456 1199 Wait 1027 | . 18 58 31 178 60 3 131 5 352 58 31 102 Move 8904 | 42 389 243 294 913 723 129 2009 1020 776 950 393 1023 Hop 23 | . . . . . . . . . . 19 4 . Pick Up 88 | 6 7 6 8 13 13 . 12 11 2 3 . 7 Fast Attach 78 | 6 4 1 5 12 4 . 7 15 4 4 . 16 Attach 54 | . . 4 1 3 7 . 7 16 1 1 5 9 Detach 37 | . . 1 4 4 1 . 6 8 1 2 5 5 Swap 149 | . 11 14 5 21 31 1 38 19 1 4 2 2 Drop 102 | . 15 6 4 24 11 . 9 26 1 5 . 1 Fire 281 | . 21 37 29 30 72 8 32 22 . 8 5 17 Melee 127 | . . . . 1 . . 53 15 18 14 11 15 Ram 4 | . . . . . . . . 2 . . . 2 Kick . | . . . . . . . . . . . . . Crush . | . . . . . . . . . . . . . Escape Stasis 8 | . . . . . . . 8 . . . . . Rewire . | . . . . . . . . . . . . . Trap . | . . . . . . . . . . . . . Miscellaneous . | . . . . . . . . . . . . . Route ------- -11/Scrapyard -10/Materials (discovered 2 exits: *Mat x2) -9/Materials (discovered 3 exits: *Mat x3) -8/Materials (discovered 3 exits: *Fac x3) -7/Factory (discovered 2 exits: *Fac / [*Sto]) -6/Factory (discovered 4 exits: *Low x2 / Ext x2) -6/Waste -6/Factory (discovered 4 exits: *Fac x4) -5/Factory (discovered 3 exits: *Fac / *Upp x2) -4/Factory (discovered 4 exits: *Res x4) -3/Research (discovered 4 exits: *Res / Arm / *Qua x2) -2/Research (discovered 2 exits: *Acc / *Tes) -1/Access History --------- Turn | Location | Event 11 | -11/Scrapyard | Discovered new exit (range 15) 64 | -11/Scrapyard | Entered Materials 198 | -10/Materials | Discovered new exit (range 3) 350 | -10/Materials | Build established: Mutant 420 | -10/Materials | Discovered new exit (range 16) 643 | -10/Materials | Entered another Materials area 643 | -9/Materials | Evolved 2 slots: Propulsion x1, Utility x1 719 | -9/Materials | Destroyed 7 combat bots 953 | -9/Materials | Discovered new exit (range 15) 1051 | -9/Materials | Identified exit to Materials 1096 | -9/Materials | Entered another Materials area 1096 | -8/Materials | Evolved 2 slots: Utility x1, Weapon x1 1189 | -8/Materials | Identified exit to Factory 1260 | -8/Materials | Garrison activated, responded to threat 1508 | -8/Materials | Entered Factory 1508 | -7/Factory | Evolved 2 slots: Utility x2 2012 | -7/Factory | Fabricated Arm. Wheel (x2) 2047 | -7/Factory | Fabricated Arm. Wheel (x2) 2400 | -7/Factory | Discovered new exit (range 4) 2671 | -7/Factory | Repaired Lgt. EM Pulse Cannon 2690 | -7/Factory | Discovered new exit (range 16) 2780 | -7/Factory | Identified exit to Factory 2791 | -7/Factory | Entered another Factory area 2791 | -6/Factory | Evolved 2 slots: Utility x2 3371 | -6/Factory | Identified exit to Lower Caves 3371 | -6/Factory | Identified exit to Extension 3593 | -6/Factory | Repaired Hvy. Assault Rifle 3841 | -6/Factory | First assault squad dispatched 3886 | -6/Factory | Sucked down chute 3886 | -6/Factory | Entered Waste 3920 | -6/Waste | Spotted C-40 Crusher 3926 | -6/Waste | Spotted C-40 Crusher 3942 | -6/Waste | Spotted C-40 Crusher 3947 | -6/Waste | Spotted C-40 Crusher 3976 | -6/Waste | Spotted C-40 Crusher 3995 | -6/Waste | Spotted C-40 Crusher 4031 | -6/Waste | Discovered new exit (range 12) 4041 | -6/Waste | Identified exit to Factory 4042 | -6/Waste | Entered Factory 4342 | -6/Factory | Fabricated Enh. Nuclear Core (x1) 4459 | -6/Factory | Build established: Hauler-Mutant 4637 | -6/Factory | Discovered new exit (range 15) 4708 | -6/Factory | Identified exit to Factory 6209 | -6/Factory | Repaired Arm. Huge Wheel? 6598 | -6/Factory | Entered another Factory area 6598 | -5/Factory | Evolved 2 slots: Utility x2 6771 | -5/Factory | Fabricated Adv. Hacking Suite (x1) 6828 | -5/Factory | Fabricated Adv. Hacking Suite? 6990 | -5/Factory | Local fabrication network quarantined 6992 | -5/Factory | Fabricated Enh. Nuclear Core? 7316 | -5/Factory | Discovered new exit (range 12) 7333 | -5/Factory | Identified exit to Upper Caves 7404 | -5/Factory | Core integrity fell below 50% 7436 | -5/Factory | Lost 17 parts (1p5n8u3w) 7476 | -5/Factory | Discovered exit to Upper Caves (range 13) 7570 | -5/Factory | Core integrity fell below 20% 7577 | -5/Factory | Spotted B-75 Beast 7618 | -5/Factory | Discovered new exit (range 21) 7649 | -5/Factory | Identified exit to Factory 7716 | -5/Factory | Entered another Factory area 7716 | -4/Factory | Evolved 2 slots: Power x1, Propulsion x1 7794 | -4/Factory | Fabricated Imp. Propulsion Shielding (x2) 7893 | -4/Factory | Build established: Hacker-Scout 7929 | -4/Factory | Fabricated Enh. Nuclear Core (x1) 8065 | -4/Factory | Fabricated Enh. Nuclear Core (x1) 8081 | -4/Factory | Identified exit to Research 8190 | -4/Factory | Repaired Power Sword? 8412 | -4/Factory | Entered Research 8412 | -3/Research | Evolved 2 slots: Propulsion x2 8474 | -3/Research | Fabricated Lrg. Storage Unit? 8512 | -3/Research | Identified exit to Armory 8512 | -3/Research | Identified exit to Quarantine 8537 | -3/Research | Spotted B-86 Titan 8890 | -3/Research | Discovered new exit (range 20) 8896 | -3/Research | Identified exit to Research 8901 | -3/Research | Entered another Research area 8901 | -2/Research | Evolved 2 slots: Propulsion x1, Utility x1 9033 | -2/Research | Discovered new exit (range 5) 9035 | -2/Research | Identified exit to Testing 9108 | -2/Research | Discovered new exit (range 11) 9112 | -2/Research | Identified exit to Access 9128 | -2/Research | Entered Access 9128 | -1/Access | Evolved 2 slots: Propulsion x1, Utility x1 9420 | -1/Access | Build established: Hacker-Assassin 9774 | -1/Access | Lost 3 parts (1p1u1w) 10073 | -1/Access | Lost 13 parts (2p2n7u2w) 10101 | -1/Access | System corruption reached 10% 10112 | -1/Access | Core integrity fell below 50% 10156 | -1/Access | Fabricated Linear Accelerator? 10186 | -1/Access | Build established: Hacker-Mutant 10187 | -1/Access | Core integrity fell below 20% 10187 | -1/Access | Spotted B-99 Colossus 10193 | -1/Access | Self-destructed Last Messages --------------- 10156_ P-80 Master resets B-74 Champion, system corruption cleaned. 10158_ Drone sends a signal. 10164_ K-01 Serf collects debris. 10165_ Imp. Linear Gravjet destroyed. 10167_ Penetrated by Slug. 10167_ Imp. Gyrokinetic Inverter destroyed. 10171_ System corrupted: Energy discharge (-5). 10173_ Antigrav Array destroyed. 10173_ Imp. Gyrokinetic Inverter destroyed. 10173_ Slammed into K-01 Serf. 10180_ Enh. Optical Array destroyed. 10184_ Imp. Linear Gravjet destroyed. 10185_ Slug penetrates Wall. 10186_ Penetrated by Slug. 10188_ Knocked back. 10188_ Penetrated by Slug. 10188_ Imp. Hacking Suite destroyed. 10188_ Penetrated by Slug. 10189_ System corrupted: IFF burst signal emitted. 10193_ Connecting with Terminal... Map ----- +----------------------------------------------------+ | ?????????????????????????????????????????????????? | | ?????????????????????????????????????????????????? | | ?????????????????????????????????????????????????? | | ?????????????????????????????????????????????????? | | ?????????????????????????????????????????????????? | | ?????????????????????????????????????????????????? | | ?????????????????????????????????????????????????? | | ?????????????????????????????????????????????????? | | ?????????????????????????????????????????????????? | | ?????????????????????????????????????????????????? | | ????????????????????????????????????????????###### | | ???????????????????????????????? ?????? ? | | ???????????????????????????????# ?????# ? | | ???????????????????????????????#* #???# ? | | ???????????????????????????????# !! ???# #? | | ???????????????????????????????# !! ???# #? | | ???????????????????????????????# ! ????# #? | | ???????????????????????????????+ ! ????# #? | | ???????????????????????????????# ?????# #? | | ???????????????????????????????# ??????# #? | | ???????????????????????????????# #??????# #? | | ???????????????????????????????# #??????# #? | | ???????????????????????????????# #??????# #? | | ???????????????????????????????# #????### ## | | ??????????????????????#######??# #????# | | ??????????????????????# @ #### ###### | | ??????????????????????# T" | | ??????????????????????# "" A = | | ??????????????????????# u k k | | ??????????????????????# ############### | | ??????????????????????## ##?????????????# | | ???????????????????????# #??????????????######## | | ?????????????????????? +?????????????????????? | | ????????????????????? #?????????????????????? | | ???????????????????? #?????????????????????? | | ??????????????????# ######?????????????????????? | | ??????????????????# ???????????????????????????? | | ??????????????????+ ????????????????????????????? | | ??????????????????? ?????????????????????????????? | | ?????????????????????????????????????????????????? | | ?????????????????????????????????????????????????? | | ?????????????????????????????????????????????????? | | ?????????????????????????????????????????????????? | | ?????????????????????????????????????????????????? | | ?????????????????????????????????????????????????? | | ?????????????????????????????????????????????????? | | ?????????????????????????????????????????????????? | | ?????????????????????????????????????????????????? | | ?????????????????????????????????????????????????? | | ?????????????????????????????????????????????????? | +----------------------------------------------------+ Best States ------------- Heat Dissipation 67 Energy Generation 36 Energy Capacity 500 Matter Stores 300 Matter Capacity 300 Sight Range 22 Robot Scan Range 20 Terrain Scan Range 24 Terrain Scan Density 10 Armor Coverage 300 Resistance: KI 40 Resistance: TH 50 Resistance: EX 20 Resistance: EM 20 Resistance: I 20 Resistance: S 20 Resistance: P 20 Propulsion Shielding 66 Utility Shielding 66 Evasion (%) 65 Targeting Accuracy 14 Melee Accuracy 8 Matter Filtering 30 Energy Filtering 30 Offensive Hacking 26 Defensive Hacking 12 Item Schematics ----------------- Mni. Grenade Launcher | -9/Materials | Scanalyzed Wheel | -9/Materials | Scanalyzed Hrd. Light Armor Plating | -9/Materials | Scanalyzed Targeting Computer | -9/Materials | Scanalyzed Lrg. Storage Unit | -9/Materials | Scanalyzed Hcp. Matter Pod | -9/Materials | Scanalyzed Arm. Wheel | -8/Materials | Hacked Imp. Grenade Launcher | -8/Materials | Scanalyzed Mic. Nuclear Core | -7/Factory | Scanalyzed Enh. Nuclear Core | -7/Factory | Scanalyzed Imp. Propulsion Shielding | -6/Factory | Scanalyzed Railgun | -6/Factory | Hacked Adv. Hacking Suite | -6/Factory | Hacked Arm. Huge Wheel | -6/Factory | Scanalyzed Magnetic Acceleration Cannon | -6/Factory | Scanalyzed Linear Accelerator | -2/Research | Scanalyzed Robot Schematics ------------------ None Fabricated ------------ Arm. Wheel | x2 | -7/Factory Arm. Wheel | x2 | -7/Factory Enh. Nuclear Core | x1 | -6/Factory Adv. Hacking Suite | x1 | -5/Factory Adv. Hacking Suite | x1 | -5/Factory Enh. Nuclear Core | x1 | -5/Factory Imp. Propulsion Shielding | x2 | -4/Factory Enh. Nuclear Core | x1 | -4/Factory Enh. Nuclear Core | x1 | -4/Factory Lrg. Storage Unit | x1 | -3/Research Linear Accelerator | x2 | -1/Access Alien Tech Used ----------------- None Achievements -------------- None Challenges ------------ None Game ------ Seed UtilityProtonShockpuncher Manual? 0 Play Time 04:21:52 Cumulative 249.6 hours Start 2019.12.05 @ 22:03:01 End 2019.12.13 @ 17:48:44 Sessions 7 Manual Loads 0 Difficulty Adventurer Special Mode None Game No. 104 Rogue 95 Adventurer 9 Explorer 0 Win Type - Total 0 Types 0/0/0/0/0/0/0 Lore% 36 Gallery% 54 Achievement% 37 Wizard Run 0 Options --------- ASCII 0 Keyboard 1 Movement Vi Keybinds 0 Fullscreen 1 Font 12/Tallcaps Map View 83x54 Tactical HUD 1 Map Filters NONE Filters NONE Steam 0 RUN: 22b6aa3b-896d-4dd8-8bbb-debf8ace4322